fUSD/lending_fUSD_20250110
["ID","MTS","AMOUNT","RATE_DAILY","PERIOD"]
[348419173,1736523089236,-666.0,0.0001097,2]
[348419174,1736523089247,-666.0,0.0001097,2]
[348419175,1736523089259,-666.0,0.0001097,2]
[348419176,1736523089269,-666.0,0.0001097,2]
[348419177,1736523089280,-200.0,0.00010971,2]
[348419178,1736523089291,-597.5474706,0.00010971,2]
[348419179,1736523089308,-1182.73936245,0.00010971,2]
[348419180,1736523089318,-390.38725938,0.00010971,2]
[348419181,1736523089329,-2446.82788293,0.00010971,2]
[348419182,1736523089339,-204817.22081228,0.00010971,2]
[348419183,1736523089351,-44796.00034188,0.00010971,2]
[348419184,1736523089372,-18675.09157636,0.00010971,2]
[348419185,1736523089384,-825.61962844,0.00010971,2]
[348419186,1736523089397,-57868.67640217,0.00010971,2]
[348419187,1736523089409,-22232.64551625,0.00010972,2]
[348419188,1736523089421,-390.38725938,0.00010972,2]
[348419189,1736523089431,-1952.02928685,0.00010972,2]
[348419190,1736523089442,-298.46254875,0.00010972,2]
[348419191,1736523089453,-3932.08902741,0.00010973,2]
[348419192,1736523089463,-200.0,0.00010973,2]
[348419193,1736523089476,-1780.28683305,0.00010973,2]
[348419194,1736523089487,-4129.4430857,0.00010974,2]
[348419195,1736523089498,-2446.82788293,0.00010974,2]
[348419196,1736523089507,-209.71402304,0.00010974,2]
[348419197,1736523089517,-24332.86195335,0.00010974,2]
[348419198,1736523089528,-75667.01062967,0.00010974,2]
[348419199,1736523089539,-200.0,0.00010974,2]
[348419200,1736523089550,-666.0,0.00010975,2]
[348419201,1736523089561,-666.0,0.00010975,2]
[348419202,1736523089575,-1694.67289871,0.00010975,2]
[348419203,1736523089585,-28076.61456894,0.00010975,2]
[348419204,1736523089595,-326982.60876113,0.00010976,2]
[348419205,1736523089606,-5615.32291378,0.00010976,2]
[348419206,1736523089616,-18812.68652391,0.00010976,2]
[348419207,1736523089626,-338.93457974,0.00010976,2]
[348419208,1736523089636,-28076.61456894,0.00010977,2]
[348419209,1736523089646,-338.93457974,0.00010977,2]
[348419210,1736523089656,-3932.08902741,0.00010978,2]
[348419211,1736523089667,-5615.32291378,0.00010978,2]
[348419212,1736523089677,-200.0,0.00010978,2]
[348419213,1736523089687,-2446.82788293,0.00010978,2]
[348419214,1736523089698,-652.20764439,0.00010978,2]
[348419215,1736523089709,-2446.82788293,0.00010978,2]
[348419216,1736523089719,-519.57473206,0.00010978,2]
[348419217,1736523089729,-18812.68652391,0.00010978,2]
[348419218,1736523089738,-200.0,0.00010978,2]
[348419219,1736523089749,-28076.61456894,0.00010978,2]
[348419220,1736523089759,-4129.4430857,0.00010979,2]
[348419221,1736523089769,-1694.67289871,0.00010979,2]
[348419222,1736523089779,-24332.86195335,0.00010979,2]
[348419223,1736523089788,-4129.4430857,0.00010979,2]
[348419224,1736523089798,-209.71402304,0.00010979,2]
[348419225,1736523089808,-1694.67289871,0.0001098,2]
[348419226,1736523089818,-3932.08902741,0.0001098,2]
[348419227,1736523089828,-326.1038222,0.0001098,2]
[348419228,1736523089838,-2446.82788293,0.0001098,2]
[348419229,1736523089848,-666.0,0.00010981,2]
[348419230,1736523089860,-666.0,0.00010981,2]
[348419231,1736523089871,-326.1038222,0.00010981,2]
[348419232,1736523089881,-200.0,0.00010981,2]
[348419233,1736523089891,-4129.4430857,0.00010981,2]
[348419234,1736523089901,-22232.64551625,0.00010981,2]
[348419235,1736523089911,-200.0,0.00010981,2]
[348419236,1736523089922,-326.1038222,0.00010982,2]
[348419237,1736523089931,-37417.73622468,0.00010982,2]
[348419238,1736523089944,-113916.28503467,0.00010982,2]
[348419239,1736523089954,-666.0,0.00010982,2]
[348419240,1736523089965,-666.0,0.00010982,2]
[348419241,1736523089976,-690.10869143,0.00010982,2]
[348419242,1736523090201,-151.0,0.00010982,2]
[348419243,1736523090212,-200.550786,0.00010982,2]
[348419244,1736523090222,-200.550786,0.00010982,2]
[348419245,1736523090232,-298.46254875,0.00010982,2]
[348419246,1736523090242,-10055.2566328,0.00010982,2]
[348419247,1736523090251,-172.55945022,0.00010982,2]
[348419248,1736523090261,-5615.32291378,0.00010983,2]
[348419249,1736523090271,-5615.32291378,0.00010983,2]
[348419250,1736523090281,-107678.50657816,0.00010983,2]
[348419251,1736523090297,-491.71438045,0.00010983,2]
[348419252,1736523090309,-451.63100164,0.00010983,2]
[348419253,1736523090321,-24032.50025948,0.00010983,2]
[348419254,1736523090753,500.0,8.577e-05,2]
[348419255,1736523091055,-529.77,8.737e-05,2]
[348419256,1736523091065,-297.87663816,8.737e-05,2]
[348419257,1736523091077,-202.12336184,8.737e-05,2]
[348419258,1736523091087,-500.0,8.737e-05,2]
[348419259,1736523091097,-500.0,8.737e-05,2]
[348419260,1736523091108,-500.0,8.737e-05,2]
[348419261,1736523091118,-500.0,8.737e-05,2]
[348419262,1736523091128,-500.0,8.738e-05,2]
[348419263,1736523091137,-500.0,8.85e-05,2]
[348419264,1736523091147,-500.0,9.011e-05,2]
[348419265,1736523091157,-500.0,9.011e-05,2]
[348419266,1736523091166,-500.0,9.011e-05,2]
[348419267,1736523091176,-407.33,9.012e-05,2]
[348419268,1736523091186,-500.0,9.285e-05,2]
[348419269,1736523091195,-500.0,9.285e-05,2]
[348419270,1736523091205,-471.76796018,9.559e-05,2]
[348419271,1736523091215,-500.0,9.559e-05,2]
[348419272,1736523091224,-500.0,9.833e-05,2]
[348419273,1736523091234,-636.0,9.858e-05,2]
[348419274,1736523091243,-150.0,0.0001,2]
[348419275,1736523091252,-261.04,0.00010107,2]
[348419276,1736523091262,-150.0,0.00010658,2]
[348419277,1736523091271,-530.84345421,0.00010658,2]
[348419278,1736523091283,-448.97654579,0.00010658,2]
[348419279,1736523091293,-1425.09315421,0.00010958,2]
[348419280,1736523091304,-1128.2971998,0.00010958,2]
[348419281,1736523091316,-522.01898272,0.00010958,2]
[348419282,1736523091327,-4424.59066327,0.00010958,2]
[348419283,1736523091337,-7500.0,0.00010958,2]
[348419284,1736523091347,-150.0,0.00010959,2]
[348419285,1736523091359,-68239.22940928,0.00010983,2]
[348419286,1736523091444,-16650.0,0.00010983,2]
[348419287,1736523091456,-9514.47,0.00010983,2]
[348419288,1736523091467,-2311.70127251,0.00010983,2]
[348419289,1736523091478,-16098.05822187,0.00010983,2]
[348419290,1736523091490,-957.52,0.00010983,2]
[348419291,1736523091500,-520.9541873,0.00010983,2]
[348419292,1736523091511,-5092.77776183,0.00010983,2]
[348419293,1736523091523,-20169.24109173,0.00010983,2]
[348419294,1736523091541,-302.0,0.00010983,2]
[348419295,1736523091552,-431.885,0.00010983,2]
[348419296,1736523091564,-325.95661418,0.00010983,2]
[348419297,1736523091577,-4647.77442738,0.00010983,2]
[348419298,1736523091589,-6800.0,0.00010983,2]
[348419299,1736523091601,-2358.24575304,0.00010983,2]
[348419300,1736523091616,-13962.22084,0.00010983,2]
[348419301,1736523091628,-16166.72813311,0.00010983,2]
[348419302,1736523091640,-252.77389777,0.00010983,2]
[348419303,1736523091653,-556.27274948,0.00010983,2]
[348419304,1736523091664,-8970.44718192,0.00010983,2]
[348419305,1736523091674,-9695.07501908,0.00010983,2]
[348419306,1736523091685,-360.18161372,0.00010983,2]
[348419307,1736523091694,-477.80810276,0.00010983,2]
[348419308,1736523091706,-174.39954163,0.00010983,2]
[348419309,1736523091715,-3932.08902741,0.00010983,2]
[348419310,1736523091724,-298.46254875,0.00010983,2]
[348419311,1736523091734,-338.93457974,0.00010983,2]
[348419312,1736523091744,-4557.61969385,0.00010983,2]
[348419313,1736523091753,-1694.67289871,0.00010983,2]
[348419314,1736523091762,-2042.32170991,0.00010983,2]
[348419315,1736523091774,-693.71658246,0.00010983,2]
[348419316,1736523091785,-1600.0,0.00010983,2]
[348419317,1736523091821,-500.0,9.011e-05,2]
[348419318,1736523091832,-500.0,9.559e-05,2]
[348419319,1736523091842,-221.58140148,0.00010983,2]
[348419320,1736523091852,-10055.2566328,0.00010983,2]
[348419321,1736523091864,-6994.99848867,0.00010983,2]
[348419322,1736523091876,-1940.30412758,0.00010983,2]
[348419323,1736523091887,-496.302152,0.00010983,2]
[348419324,1736523091898,-410.0,0.00010983,2]
[348419325,1736523091910,-2255.1699179,0.00010983,2]
[348419326,1736523092040,500.0,8.577e-05,2]
[348419327,1736523092405,618.52,8.577e-05,2]
[348419328,1736523093049,500.0,8.577e-05,2]
[348419329,1736523095271,500.0,8.577e-05,2]
[348419330,1736523100729,718.92,8.577e-05,2]
[348419331,1736523104338,1540.96,8.577e-05,2]
[348419332,1736523109454,550.79,8.577e-05,2]
[348419343,1736523129921,500.0,8.577e-05,2]
[348419344,1736523132650,1000.0,8.479e-05,2]
[348419345,1736523137568,1130.21,8.577e-05,2]
[348419346,1736523156797,500.0,8.577e-05,2]
[348419347,1736523164371,500.0,8.577e-05,2]
[348419348,1736523168583,551.22780517,8.577e-05,2]
[348419349,1736523168614,236.14219483,8.577e-05,2]
[348419350,1736523180193,2033.06,8.249e-05,2]
[348419351,1736523180821,500.0,8.577e-05,2]
[348419353,1736523215855,500.0,8.577e-05,2]
[348419354,1736523222760,1488.51,8.577e-05,2]
[348419355,1736523229062,557.84,8.577e-05,2]
[348419358,1736523239485,785.86,8.577e-05,2]
[348419359,1736523249034,500.0,8.577e-05,2]
[348419360,1736523264540,850.21,8.577e-05,2]
[348419361,1736523270001,2038.72,8.577e-05,2]
[348419362,1736523273348,509.65780517,8.577e-05,2]
[348419363,1736523273373,141.54219483,8.577e-05,2]
[348419364,1736523282883,9858.45780517,8.217e-05,2]
[348419365,1736523282908,10000.0,8.217e-05,2]
[348419366,1736523282930,4041.54219483,8.217e-05,2]
[348419367,1736523289683,503.98,8.217e-05,2]
[348419368,1736523294685,3346.79,8.181e-05,2]
[348419370,1736523458401,-150.0,8.576e-05,2]
[348419371,1736523458735,-50000.0,8.577e-05,2]
[348419372,1736523458763,-565.68,8.577e-05,2]
[348419373,1736523458792,-484.32,8.577e-05,2]
[348419374,1736523616210,200.0,8.139e-05,2]
[348419376,1736523630659,637.8,8.144e-05,2]
[348419377,1736523646060,250.0,8.08e-05,2]
[348419380,1736523683036,1002.33,8.044e-05,2]
[348419382,1736523722139,17.55780517,8.006e-05,2]
[348419383,1736523722164,232.44219483,8.006e-05,2]
[348419385,1736523756323,694.47,8.219e-05,2]
[348419386,1736523766090,428.11,7.982e-05,2]
[348419387,1736523767169,169.37,8.221e-05,2]
[348419388,1736523811353,150.0,0.00018115,120]
[348419389,1736523843243,989.33,8.219e-05,2]
[348419390,1736523852048,250.0,8.219e-05,2]
[348419391,1736523875935,1500.0,7.942e-05,2]
[348419392,1736523897941,794.97,7.993e-05,2]
[348419395,1736523969951,179.7,6.323e-05,2]
[348419397,1736524036538,1000.0,8.219e-05,2]
[348419399,1736524045421,1542.12,8.219e-05,2]
[348419400,1736524051333,150.0,0.00018685,120]
[348419401,1736524067071,165.02,8.219e-05,2]
[348419402,1736524111306,150.0,0.00019322,120]
[348419404,1736524152275,-150.0,8.537e-05,2]
[348419405,1736524152304,-300.0,8.537e-05,2]
[348419406,1736524152328,-1320.86078193,8.538e-05,2]
[348419407,1736524152351,-283.60702324,8.538e-05,2]
[348419408,1736524167673,-283.81807676,8.538e-05,2]
[348419409,1736524167695,-1114.6308,8.538e-05,2]
[348419410,1736524167718,-5601.55112324,8.538e-05,2]
[348419413,1736524169747,23900.0,7.877e-05,2]
[348419422,1736524198802,2000.0,7.864e-05,2]
[348419423,1736524205762,-151.0,8.538e-05,2]
[348419439,1736524231687,-914.46060106,8.538e-05,2]
[348419440,1736524231700,-255.40018085,8.538e-05,2]
[348419441,1736524231710,-12831.67947676,8.538e-05,2]
[348419442,1736524231720,-150.0,8.548e-05,2]
[348419443,1736524231731,-3362.92132381,8.548e-05,2]
[348419444,1736524231743,-6855.28474505,8.548e-05,2]
[348419445,1736524231755,-2513.36919445,8.548e-05,2]
[348419446,1736524231842,-259.71141455,8.548e-05,2]
[348419447,1736524231857,-15742.83317164,8.548e-05,2]
[348419448,1736524231868,-203.86480364,8.548e-05,2]
[348419449,1736524231878,-584.27805934,8.548e-05,2]
[348419450,1736524231888,-203.86480364,8.563e-05,2]
[348419451,1736524231898,-1268.62744795,8.577e-05,2]
[348419452,1736524231914,-478.90255205,8.577e-05,2]
[348419453,1736524231924,-500.0,8.577e-05,2]
[348419454,1736524231933,-1348.6,8.577e-05,2]
[348419455,1736524231943,-3203.72,8.577e-05,2]
[348419456,1736524231953,-1647.23,8.577e-05,2]
[348419457,1736524231962,-1103.85,8.577e-05,2]
[348419458,1736524231973,-1226.84,8.577e-05,2]
[348419459,1736524231984,-843.28,8.577e-05,2]
[348419460,1736524231995,-1796.31,8.577e-05,2]
[348419461,1736524232005,-203.86480364,8.577e-05,2]
[348419462,1736524232015,-1043.14,8.577e-05,2]
[348419463,1736524232025,-1316.27,8.577e-05,2]
[348419464,1736524232035,-1311.99,8.577e-05,2]
[348419465,1736524232044,-2157.87,8.577e-05,2]
[348419466,1736524232054,-2366.16,8.577e-05,2]
[348419467,1736524232064,-2149.91,8.577e-05,2]
[348419468,1736524232074,-2500.0,8.578e-05,2]
[348419469,1736524232085,-1000.0,8.636e-05,2]
[348419470,1736524232095,-968.77961326,8.636e-05,2]
[348419471,1736524232107,-6004.5421,8.637e-05,2]
[348419472,1736524232116,-500.0,8.637e-05,2]
[348419473,1736524232125,-5000.0,8.637e-05,2]
[348419474,1736524232135,-44331.06202388,8.638e-05,2]
[348419475,1736524232147,-28450.9504968,8.638e-05,2]
[348419477,1736524232159,-426.19985669,8.638e-05,2]
[348419480,1736524232210,-4602.1,8.638e-05,2]
[348419481,1736524232223,-21521.08322263,8.638e-05,2]
[348419482,1736524232234,-8696.06,8.678e-05,2]
[348419483,1736524232243,-1684.62,8.678e-05,2]
[348419484,1736524232253,-1188.63,8.678e-05,2]
[348419485,1736524232263,-1197.62,8.678e-05,2]
[348419486,1736524232273,-2275.37,8.678e-05,2]
[348419488,1736524232282,-662.96,8.678e-05,2]
[348419490,1736524232291,-1191.38,8.678e-05,2]
[348419491,1736524232301,-500.0,8.713e-05,2]
[348419492,1736524232311,-500.0,8.735e-05,2]
[348419493,1736524232321,-500.0,8.735e-05,2]
[348419494,1736524232332,-500.0,8.735e-05,2]
[348419495,1736524232343,-500.0,8.735e-05,2]
[348419496,1736524232355,-500.0,8.735e-05,2]
[348419497,1736524232365,-500.0,8.735e-05,2]
[348419498,1736524232375,-500.0,8.735e-05,2]
[348419499,1736524232385,-500.0,8.735e-05,2]
[348419500,1736524232395,-630.74253525,8.735e-05,2]
[348419501,1736524232404,-500.0,8.735e-05,2]
[348419502,1736524232414,-500.0,8.735e-05,2]
[348419503,1736524232424,-500.0,8.735e-05,2]
[348419504,1736524232433,-500.0,8.735e-05,2]
[348419506,1736524232443,-500.0,8.735e-05,2]
[348419508,1736524232452,-500.0,8.735e-05,2]
[348419510,1736524232463,-505.19170021,8.735e-05,2]
[348419512,1736524232473,-500.0,8.735e-05,2]
[348419514,1736524232484,-1593.59,8.735e-05,2]
[348419516,1736524232494,-500.0,8.735e-05,2]
[348419518,1736524232505,-1043.52,8.735e-05,2]
[348419520,1736524232514,-500.0,8.735e-05,2]
[348419522,1736524232524,-500.0,8.735e-05,2]
[348419524,1736524232534,-500.0,8.735e-05,2]
[348419526,1736524232543,-876.27,8.735e-05,2]
[348419528,1736524232554,-584.51614515,8.735e-05,2]
[348419530,1736524232563,-500.0,8.735e-05,2]
[348419532,1736524232573,-500.0,8.735e-05,2]
[348419534,1736524232583,-500.0,8.735e-05,2]
[348419536,1736524232593,-2264.41,8.735e-05,2]
[348419538,1736524232604,-500.0,8.735e-05,2]
[348419540,1736524232614,-1584.14,8.735e-05,2]
[348419542,1736524232624,-500.0,8.735e-05,2]
[348419544,1736524232633,-500.0,8.735e-05,2]
[348419546,1736524232643,-500.0,8.735e-05,2]
[348419548,1736524232652,-5.59883384,8.735e-05,2]
[348419551,1736524232665,-494.40116616,8.735e-05,2]
[348419553,1736524232674,-500.0,8.735e-05,2]
[348419555,1736524232684,-1819.95,8.735e-05,2]
[348419557,1736524232693,-500.0,8.735e-05,2]
[348419559,1736524232703,-500.0,8.735e-05,2]
[348419561,1736524232713,-500.0,8.735e-05,2]
[348419563,1736524232722,-500.0,8.735e-05,2]
[348419565,1736524232732,-1002.74,8.735e-05,2]
[348419567,1736524232742,-500.0,8.735e-05,2]
[348419569,1736524232752,-500.0,8.735e-05,2]
[348419571,1736524232762,-3030.78,8.735e-05,2]
[348419573,1736524232772,-500.0,8.735e-05,2]
[348419574,1736524232782,-500.0,8.735e-05,2]
[348419575,1736524232792,-2135.04,8.735e-05,2]
[348419576,1736524232802,-500.0,8.735e-05,2]
[348419577,1736524232812,-587.9461012,8.735e-05,2]
[348419578,1736524232822,-1215.89,8.735e-05,2]
[348419579,1736524232831,-1582.69,8.735e-05,2]
[348419580,1736524232840,-226.56958368,8.735e-05,2]
[348419581,1736524232850,-500.0,8.735e-05,2]
[348419582,1736524232863,-500.0,8.735e-05,2]
[348419583,1736524232872,-3156.38,8.735e-05,2]
[348419584,1736524232882,-500.0,8.735e-05,2]
[348419585,1736524232892,-500.0,8.735e-05,2]
[348419586,1736524232903,-500.0,8.735e-05,2]
[348419587,1736524232916,-500.0,8.735e-05,2]
[348419588,1736524232926,-2856.35,8.735e-05,2]
[348419589,1736524232935,-500.0,8.735e-05,2]
[348419590,1736524232945,-873.09,8.735e-05,2]
[348419591,1736524232955,-500.0,8.735e-05,2]
[348419592,1736524232965,-500.0,8.735e-05,2]
[348419593,1736524232974,-500.0,8.735e-05,2]
[348419594,1736524232985,-1690.28,8.735e-05,2]
[348419595,1736524232994,-965.26,8.735e-05,2]
[348419596,1736524233004,-500.0,8.735e-05,2]
[348419597,1736524233014,-500.0,8.735e-05,2]
[348419598,1736524233024,-507.74,8.735e-05,2]
[348419599,1736524233033,-570.26,8.735e-05,2]
[348419600,1736524233043,-1471.01,8.735e-05,2]
[348419601,1736524233053,-1258.78,8.735e-05,2]
[348419602,1736524233063,-500.0,8.735e-05,2]
[348419603,1736524233073,-500.0,8.736e-05,2]
[348419604,1736524233083,-500.0,8.736e-05,2]
[348419605,1736524233093,-500.65433567,8.736e-05,2]
[348419606,1736524233103,-500.0,8.736e-05,2]
[348419607,1736524233113,-500.0,8.736e-05,2]
[348419608,1736524233123,-500.48833845,8.736e-05,2]
[348419609,1736524233134,-500.50102348,8.736e-05,2]
[348419610,1736524233144,-694.65,8.736e-05,2]
[348419611,1736524233153,-500.0,8.736e-05,2]
[348419612,1736524233163,-500.31768155,8.736e-05,2]
[348419613,1736524233174,-500.0,8.736e-05,2]
[348419614,1736524233184,-692.78976255,8.736e-05,2]
[348419615,1736524233197,-69.01023745,8.736e-05,2]
[348419616,1736524233207,-471.74215027,8.736e-05,2]
[348419617,1736524233217,-500.0,8.736e-05,2]
[348419618,1736524233230,-500.0,8.736e-05,2]
[348419619,1736524233241,-500.45813681,8.736e-05,2]
[348419620,1736524233252,-434.97513068,8.736e-05,2]
[348419621,1736524233262,-939.91,8.736e-05,2]
[348419622,1736524233272,-500.0,8.736e-05,2]
[348419623,1736524233282,-961.78,8.736e-05,2]
[348419624,1736524233293,-822.48,8.736e-05,2]
[348419625,1736524233303,-500.0,8.736e-05,2]
[348419626,1736524233313,-566.63,8.736e-05,2]
[348419627,1736524233322,-500.0,8.736e-05,2]
[348419628,1736524233332,-500.0,8.736e-05,2]
[348419629,1736524233342,-500.0,8.736e-05,2]
[348419630,1736524233357,-500.0,8.736e-05,2]
[348419631,1736524233369,-500.0,8.736e-05,2]
[348419632,1736524233379,-500.0,8.736e-05,2]
[348419633,1736524233390,-745.23,8.736e-05,2]
[348419634,1736524233400,-1068.97,8.736e-05,2]
[348419635,1736524233410,-822.16,8.736e-05,2]
[348419636,1736524233420,-500.0,8.736e-05,2]
[348419637,1736524233431,-500.0,8.736e-05,2]
[348419638,1736524233441,-500.0,8.736e-05,2]
[348419639,1736524233451,-858.49,8.736e-05,2]
[348419640,1736524233462,-500.0,8.736e-05,2]
[348419641,1736524233472,-500.0,8.736e-05,2]
[348419642,1736524233482,-846.15,8.736e-05,2]
[348419643,1736524233492,-500.0,8.736e-05,2]
[348419644,1736524233502,-407.54397642,8.736e-05,2]
[348419645,1736524233512,-211.64581508,8.736e-05,2]
[348419646,1736524233522,-500.0,8.736e-05,2]
[348419647,1736524233533,-500.0,8.736e-05,2]
[348419648,1736524233543,-500.0,8.736e-05,2]
[348419649,1736524233553,-476.60132607,8.736e-05,2]
[348419650,1736524233567,-23.39867393,8.736e-05,2]
[348419651,1736524233578,-500.0,8.736e-05,2]
[348419652,1736524233588,-500.0,8.736e-05,2]
[348419653,1736524233599,-127.09548848,8.736e-05,2]
[348419654,1736524233615,-372.90451152,8.736e-05,2]
[348419655,1736524233625,-500.0,8.736e-05,2]
[348419656,1736524233635,-1010.23,8.736e-05,2]
[348419657,1736524233646,-532.96548848,8.736e-05,2]
[348419658,1736524233658,-607.29451152,8.736e-05,2]
[348419659,1736524233668,-192.70548848,8.736e-05,2]
[348419660,1736524233681,-307.29451152,8.736e-05,2]
[348419661,1736524233691,-709.1,8.736e-05,2]
[348419662,1736524233702,-500.0,8.736e-05,2]
[348419663,1736524233712,-500.0,8.736e-05,2]
[348419664,1736524233722,-933.11,8.736e-05,2]
[348419665,1736524233732,-500.0,8.736e-05,2]
[348419666,1736524233742,-500.0,8.736e-05,2]
[348419667,1736524233752,-1046.94,8.736e-05,2]
[348419668,1736524233763,-602.2,8.736e-05,2]
[348419669,1736524233773,-500.0,8.736e-05,2]
[348419670,1736524233783,-500.0,8.736e-05,2]
[348419671,1736524233794,-480.53105068,8.736e-05,2]
[348419672,1736524233804,-888.35,8.736e-05,2]
[348419673,1736524233815,-500.0,8.736e-05,2]
[348419674,1736524233826,-500.0,8.736e-05,2]
[348419675,1736524233837,-500.0,8.736e-05,2]
[348419676,1736524233847,-627.38,8.736e-05,2]
[348419677,1736524233860,-500.0,8.736e-05,2]
[348419678,1736524233871,-1166.68,8.736e-05,2]
[348419679,1736524233881,-500.0,8.736e-05,2]
[348419680,1736524233892,-500.0,8.736e-05,2]
[348419681,1736524233903,-967.77,8.736e-05,2]
[348419682,1736524233916,-500.0,8.736e-05,2]
[348419683,1736524233926,-500.0,8.736e-05,2]
[348419684,1736524233937,-500.0,8.736e-05,2]
[348419685,1736524233947,-500.0,8.736e-05,2]
[348419686,1736524233959,-500.0,8.736e-05,2]
[348419687,1736524233970,-500.0,8.736e-05,2]
[348419688,1736524233980,-500.24070663,8.736e-05,2]
[348419689,1736524233992,-1005.93,8.736e-05,2]
[348419690,1736524234002,-500.0,8.736e-05,2]
[348419691,1736524234012,-781.9,8.736e-05,2]
[348419692,1736524234022,-500.0,8.736e-05,2]
[348419693,1736524234033,-500.0,8.736e-05,2]
[348419694,1736524234043,-500.0,8.736e-05,2]
[348419695,1736524234052,-500.0,8.736e-05,2]
[348419696,1736524234064,-2150.01,8.736e-05,2]
[348419697,1736524234318,-500.0,8.736e-05,2]
[348419698,1736524234346,-500.0,8.736e-05,2]
[348419699,1736524234360,-638.80373117,8.736e-05,2]
[348419700,1736524234389,-397.500005,8.736e-05,2]
[348419701,1736524234401,-16.03626383,8.736e-05,2]
[348419702,1736524234411,-912.91,8.736e-05,2]
[348419703,1736524234422,-100.22331917,8.736e-05,2]
[348419704,1736524234434,-558.64076234,8.736e-05,2]
[348419705,1736524234446,-1156.40591849,8.736e-05,2]
[348419706,1736524234456,-500.0,8.736e-05,2]
[348419707,1736524234467,-697.39162318,8.736e-05,2]
[348419708,1736524234478,-158.67837682,8.736e-05,2]
[348419709,1736524234487,-368.06422656,8.736e-05,2]
[348419710,1736524234498,-307.8334,8.736e-05,2]
[348419711,1736524234510,-290.65237344,8.736e-05,2]
[348419712,1736524234520,-206.20855373,8.736e-05,2]
[348419713,1736524234532,-1655.59144627,8.736e-05,2]
[348419714,1736524234541,-688.9,8.736e-05,2]
[348419715,1736524234551,-500.0,8.736e-05,2]
[348419716,1736524234560,-1068.54,8.736e-05,2]
[348419717,1736524234570,-978.06,8.736e-05,2]
[348419718,1736524234580,-237.34289093,8.736e-05,2]
[348419719,1736524234592,-262.65710907,8.736e-05,2]
[348419720,1736524234602,-587.28,8.736e-05,2]
[348419721,1736524234614,-255.17912478,8.736e-05,2]
[348419722,1736524234626,-621.88087522,8.736e-05,2]
[348419723,1736524234636,-500.0,8.736e-05,2]
[348419724,1736524234645,-766.28,8.736e-05,2]
[348419725,1736524234655,-1720.12066826,8.736e-05,2]
[348419726,1736524234714,-314.22734343,8.736e-05,2]
[348419733,1736524237446,-478.31959918,8.735e-05,2]
[348419734,1736524237559,-263.9507748,8.735e-05,2]
[348419735,1736524237572,-667.44962602,8.735e-05,2]
[348419736,1736524237581,-589.92,8.735e-05,2]
[348419737,1736524237591,-577.05198831,8.736e-05,2]
[348419738,1736524237602,-1556.83,8.736e-05,2]
[348419739,1736524237614,-826.2,8.736e-05,2]
[348419740,1736524237624,-2923.04159772,8.736e-05,2]
[348419741,1736524237671,-4572.53840228,8.736e-05,2]
[348419742,1736524237681,-784.4,8.736e-05,2]
[348419743,1736524237691,-500.0,8.736e-05,2]
[348419744,1736524237700,-797.2,8.736e-05,2]
[348419745,1736524237710,-915.4,8.736e-05,2]
[348419746,1736524237720,-1078.79,8.736e-05,2]
[348419747,1736524237731,-1363.41,8.736e-05,2]
[348419748,1736524237742,-500.0,8.736e-05,2]
[348419749,1736524237754,-1339.84,8.736e-05,2]
[348419750,1736524237764,-1267.14,8.736e-05,2]
[348419751,1736524237775,-500.0,8.736e-05,2]
[348419752,1736524237786,-1698.13,8.736e-05,2]
[348419753,1736524237796,-949.94,8.736e-05,2]
[348419754,1736524237806,-1813.78,8.736e-05,2]
[348419755,1736524237816,-500.0,8.736e-05,2]
[348419756,1736524237827,-500.0,8.736e-05,2]
[348419757,1736524237839,-500.0,8.736e-05,2]
[348419758,1736524237848,-5166.39,8.736e-05,2]
[348419759,1736524237861,-3593.7,8.736e-05,2]
[348419760,1736524237871,-1020.92,8.736e-05,2]
[348419761,1736524237880,-500.0,8.736e-05,2]
[348419762,1736524237891,-500.0,8.736e-05,2]
[348419763,1736524237901,-1241.67,8.736e-05,2]
[348419764,1736524237913,-218.89883444,8.736e-05,2]
[348419765,1736524237922,-742.95,8.736e-05,2]
[348419766,1736524237932,-675.3,8.736e-05,2]
[348419767,1736524237942,-1052.3,8.736e-05,2]